bitfinex/quotes_BTCUSD_20260117
["timestamp","ask_amount","ask_price","bid_price","bid_amount"]
[1768616104325,0.01049879,95249.0,95246.0,0.01049912]
[1768616104527,0.01049868,95250.0,95246.0,0.06299473]
[1768616104780,0.01049868,95250.0,95246.0,0.01045369]
[1768616104989,0.01049879,95249.0,95245.0,0.01049923]
[1768616105783,0.0629932,95249.0,95245.0,0.01049923]
[1768616106338,0.0104989,95248.0,95245.0,0.01049923]
[1768616107430,0.01049879,95249.0,95245.0,0.06299537]
[1768616107629,0.01049879,95249.0,95246.0,0.01049912]
[1768616108358,0.0015741,95246.0,95244.0,0.0104539]
[1768616109351,0.0015741,95246.0,95244.0,0.06295058]
[1768616110805,0.0015741,95246.0,95244.0,0.0104539]
[1768616111261,0.0015741,95246.0,95244.0,0.06295033]
[1768616111855,0.0015741,95246.0,95244.0,0.0629049]
[1768616112057,0.0015741,95246.0,95244.0,0.01036304]
[1768616112671,0.0015741,95246.0,95244.0,0.06285936]
[1768616113180,0.0015741,95246.0,95244.0,0.01036304]
[1768616113591,0.0015741,95246.0,95245.0,0.05249619]
[1768616113950,0.0015741,95246.0,95244.0,0.06285962]
[1768616114929,0.0015741,95246.0,95244.0,0.01036304]
[1768616115132,0.0015741,95246.0,95244.0,0.06285964]
[1768616115279,0.0015741,95246.0,95244.0,0.01036304]
[1768616116432,0.0015741,95246.0,95244.0,0.06285964]
[1768616116638,0.0015741,95246.0,95244.0,0.06285975]
[1768616116840,0.0015741,95246.0,95244.0,0.01036304]
[1768616117004,0.0015741,95246.0,95244.0,0.01031761]
[1768616118105,0.0015741,95246.0,95243.0,0.01049945]
[1768616118738,0.0015741,95246.0,95234.0,0.01050045]
[1768616118739,0.01050001,95238.0,95234.0,0.01050045]
[1768616119609,0.01050001,95238.0,95235.0,1e-08]
[1768616119610,0.05250115,95236.0,95235.0,1e-08]
[1768616119823,0.06300055,95238.0,95235.0,1e-08]
[1768616120057,0.05250115,95236.0,95235.0,1e-08]
[1768616120274,0.06300055,95238.0,95235.0,1e-08]
[1768616120476,0.06300006,95238.0,95235.0,1e-08]
[1768616120682,0.06300006,95238.0,95235.0,0.00014196]
[1768616120890,0.01050001,95238.0,95235.0,0.00014196]
[1768616121744,0.0104999,95239.0,95235.0,0.06314396]
[1768616121959,0.01049967,95241.0,95236.0,0.01050023]
[1768616122205,0.01049979,95240.0,95236.0,0.01050023]
[1768616122405,0.01049979,95240.0,95235.0,0.00014196]
[1768616122406,0.01050001,95238.0,95235.0,0.00014196]
[1768616122945,0.01050001,95238.0,95235.0,0.0106423]
[1768616123150,0.01050001,95238.0,95235.0,0.063144]
[1768616123310,0.0104999,95239.0,95236.0,0.01050023]
[1768616123752,0.06299963,95239.0,95235.0,0.0106423]
[1768616123937,0.01050001,95238.0,95235.0,0.00014196]
[1768616124155,0.01050001,95238.0,95235.0,0.0106423]
[1768616125403,0.01050001,95238.0,95235.0,0.00014196]
[1768616125607,0.0525006,95237.0,95235.0,0.00014196]
[1768616125821,0.01050001,95238.0,95235.0,0.00014196]
[1768616126841,0.06300014,95238.0,95235.0,0.00014196]
[1768616127428,0.01050001,95238.0,95235.0,0.00014196]
[1768616127969,0.01050001,95238.0,95235.0,0.0106423]
[1768616128172,0.01050001,95238.0,95235.0,0.00014196]
[1768616128794,0.06300055,95238.0,95235.0,0.00014196]
[1768616130468,0.01050001,95238.0,95235.0,0.00014196]
[1768616130695,8.459e-05,95235.0,95234.0,0.01050045]
[1768616130914,8.459e-05,95235.0,95234.0,0.0105477]
[1768616131201,8.459e-05,95235.0,95234.0,4.725e-05]
[1768616132530,8.459e-05,95235.0,95234.0,0.0525495]
[1768616133792,8.459e-05,95235.0,95234.0,4.725e-05]
[1768616134044,8.459e-05,95235.0,95234.0,0.0525495]
[1768616134283,8.459e-05,95235.0,95234.0,4.725e-05]
[1768616141761,0.0104999,95239.0,95236.0,0.06300124]
[1768616141965,0.0104999,95239.0,95234.0,0.0105477]
[1768616141966,0.01050001,95238.0,95234.0,0.0105477]
[1768616142172,0.01050001,95238.0,95235.0,0.01050034]
[1768616142491,0.01050012,95237.0,95234.0,4.725e-05]
[1768616142698,0.01050001,95238.0,95234.0,4.725e-05]
[1768616142900,0.01050012,95237.0,95234.0,0.0105477]
[1768616143100,0.01050012,95237.0,95234.0,4.725e-05]
[1768616143959,0.01040924,95237.0,95234.0,0.06304995]
[1768616144193,0.0104999,95239.0,95236.0,0.01050023]
[1768616144344,0.06299979,95239.0,95235.0,0.01050034]
[1768616144546,0.01050001,95238.0,95234.0,0.0525491]
[1768616144752,0.01050001,95238.0,95234.0,0.06304991]
[1768616145007,0.01050001,95238.0,95235.0,0.01050034]
[1768616145439,0.01049979,95240.0,95237.0,0.01050012]
[1768616145663,0.0104999,95239.0,95235.0,0.06300162]
[1768616146084,0.0104999,95239.0,95235.0,0.01050034]
[1768616146297,0.01049979,95240.0,95235.0,0.01050034]
[1768616146475,0.06299918,95240.0,95235.0,0.01050034]
[1768616146721,0.0104999,95239.0,95236.0,0.01050023]
[1768616147128,0.06299979,95239.0,95235.0,0.01050034]
[1768616147338,0.0104999,95239.0,95236.0,0.01050023]
[1768616147546,0.0104999,95239.0,95235.0,0.01050034]
[1768616147878,0.06299945,95239.0,95235.0,0.01050034]
[1768616148264,0.0104999,95239.0,95235.0,0.06300197]
[1768616149313,0.0104999,95239.0,95236.0,0.01050023]
[1768616149878,0.1902382,95241.0,95236.0,0.06300138]
[1768616150267,0.06299915,95240.0,95236.0,0.01050023]
[1768616150482,0.13773967,95241.0,95237.0,0.01050012]
[1768616150685,0.19023842,95241.0,95237.0,0.01050012]
[1768616150886,0.01049979,95240.0,95237.0,0.01050012]
[1768616151759,0.06299883,95240.0,95237.0,0.01050012]
[1768616151961,0.01049979,95240.0,95237.0,0.01050012]
[1768616152636,0.01149979,95240.0,95237.0,0.01050012]
[1768616153298,0.01049979,95240.0,95237.0,0.01050012]
[1768616153823,0.06299896,95240.0,95237.0,0.01050012]
[1768616153999,0.0104999,95239.0,95236.0,0.01050023]
[1768616154227,0.06299905,95240.0,95236.0,0.01050023]
[1768616154561,0.01049979,95240.0,95236.0,0.01050023]
[1768616154762,0.01040891,95240.0,95236.0,0.01050023]
[1768616155399,0.001,95240.0,95237.0,0.01050012]
[1768616155620,0.01149979,95240.0,95237.0,0.01050012]
[1768616155781,0.01049979,95240.0,95236.0,0.01050023]
[1768616156276,0.12724,95241.0,95237.0,0.01050012]
[1768616156706,0.01049979,95240.0,95236.0,0.01050023]
[1768616156909,0.06299895,95240.0,95236.0,0.01050023]
[1768616157113,0.01049979,95240.0,95236.0,0.01050023]
[1768616157334,0.01049979,95240.0,95236.0,0.06300136]
[1768616157655,0.01049979,95240.0,95236.0,0.01050023]
[1768616157869,0.01049979,95240.0,95237.0,0.01050012]
[1768616158710,0.0629989,95240.0,95237.0,0.01050012]
[1768616159422,0.0639989,95240.0,95237.0,0.01050012]
[1768616159830,0.0639989,95240.0,95236.0,0.01050023]
[1768616160035,0.01049979,95240.0,95236.0,0.01050023]
[1768616160257,0.01049979,95240.0,95236.0,0.06300138]
[1768616160476,0.0629989,95240.0,95236.0,0.06300136]
[1768616161079,0.01049979,95240.0,95236.0,0.06300136]
[1768616161428,0.01049979,95240.0,95236.0,0.06300126]
[1768616161674,0.01049979,95240.0,95236.0,0.01050023]
[1768616161919,0.01040902,95239.0,95236.0,0.01050023]
[1768616162278,0.01049979,95240.0,95237.0,0.01050012]
[1768616162859,0.01049979,95240.0,95237.0,0.0630005]
[1768616163079,0.01049979,95240.0,95237.0,0.01050012]
[1768616163280,0.06299901,95240.0,95237.0,0.01050012]
[1768616163701,0.0104999,95239.0,95236.0,0.01050023]
[1768616163904,0.01049979,95240.0,95236.0,0.06300102]
[1768616164136,0.01049979,95240.0,95236.0,0.06300132]
[1768616164344,0.01049979,95240.0,95237.0,0.01050012]
[1768616165041,0.13773967,95241.0,95237.0,0.06300049]
[1768616165749,0.19023808,95241.0,95237.0,0.06300049]
[1768616165903,0.13773967,95241.0,95237.0,0.06300049]
[1768616166107,0.0104999,95239.0,95236.0,0.01050023]
[1768616166731,0.13773967,95241.0,95237.0,0.01050012]
[1768616166949,0.13773967,95241.0,95237.0,0.06300035]
[1768616167230,0.06299874,95240.0,95236.0,0.01050023]
[1768616167794,0.01049979,95240.0,95235.0,0.01050034]
[1768616167987,0.06299891,95240.0,95236.0,0.05250107]
[1768616168187,0.06299891,95240.0,95235.0,0.06300185]
[1768616168381,0.13773967,95241.0,95236.0,0.01050023]
[1768616168586,0.01049979,95240.0,95236.0,0.01050023]
[1768616168835,0.01040891,95240.0,95236.0,0.06300126]
[1768616169432,0.19023829,95241.0,95237.0,0.01050012]
[1768616169628,0.06299879,95240.0,95236.0,0.01050023]
[1768616169852,0.0104999,95239.0,95235.0,0.0630018]
[1768616170068,0.0104999,95239.0,95236.0,0.01050023]
[1768616170492,0.0104999,95239.0,95236.0,0.06300136]
[1768616170724,0.06299992,95239.0,95235.0,0.01050034]
[1768616171071,0.0104999,95239.0,95235.0,0.01050034]
[1768616171484,0.0104999,95239.0,95236.0,0.06300137]
[1768616171712,0.0104999,95239.0,95236.0,0.01050023]
[1768616171911,0.0104999,95239.0,95235.0,0.01050034]
[1768616172766,0.0104999,95239.0,95236.0,0.01050023]
[1768616172964,0.01049979,95240.0,95236.0,0.01050023]
[1768616173167,0.01049979,95240.0,95236.0,0.0630009]
[1768616173374,0.01049979,95240.0,95237.0,0.01050012]
[1768616173694,0.01049979,95240.0,95237.0,0.0630007]
[1768616173894,0.01049979,95240.0,95237.0,0.06300054]
[1768616174423,0.13773967,95241.0,95237.0,0.06300054]
[1768616174599,0.01049979,95240.0,95237.0,0.01050012]
[1768616174833,0.13773967,95241.0,95237.0,0.06300031]
[1768616175862,0.13773967,95241.0,95238.0,0.01050001]
[1768616176068,0.06299916,95240.0,95236.0,0.01050023]
[1768616176282,0.06299881,95240.0,95236.0,0.01050023]
[1768616176638,0.01049979,95240.0,95236.0,0.06300101]
[1768616177047,0.13773967,95241.0,95237.0,0.06300067]
[1768616177250,0.13773967,95241.0,95238.0,0.05249997]
[1768616177462,0.01049979,95240.0,95236.0,0.06300133]
[1768616178693,0.01049979,95240.0,95236.0,0.06300118]
[1768616178896,0.01049979,95240.0,95236.0,0.01050023]
[1768616179948,0.01049979,95240.0,95236.0,0.06300128]
[1768616180161,0.13773967,95241.0,95237.0,0.01050012]
[1768616180364,0.19023819,95241.0,95237.0,0.01050012]
[1768616180783,0.01149979,95240.0,95237.0,0.01050012]
[1768616180990,0.0104999,95239.0,95236.0,0.06300138]
[1768616181198,0.01149979,95240.0,95237.0,0.01050012]
[1768616181405,0.01049979,95240.0,95236.0,0.01050023]
[1768616181613,0.01049979,95240.0,95237.0,0.01050012]
[1768616182022,0.0104999,95239.0,95236.0,0.01050023]
[1768616182644,0.0104999,95239.0,95236.0,0.06300132]
[1768616183713,0.0104999,95239.0,95236.0,0.01050023]
[1768616184110,0.01049979,95240.0,95237.0,0.01050012]
[1768616185699,0.0104999,95239.0,95235.0,0.01050034]
[1768616185937,0.0104999,95239.0,95236.0,0.01050023]
[1768616186140,0.01049979,95240.0,95237.0,0.01050012]
[1768616186352,0.01049979,95240.0,95236.0,0.01050023]
[1768616186563,0.01049979,95240.0,95237.0,0.01050012]
[1768616186739,0.0104999,95239.0,95236.0,0.01050023]
[1768616187201,0.13773967,95241.0,95237.0,0.01050012]
[1768616187405,0.13773967,95241.0,95237.0,0.06300064]
[1768616187618,0.13773967,95241.0,95238.0,0.06300001]
[1768616187829,0.13773967,95241.0,95236.0,0.01050023]
[1768616188038,0.01049979,95240.0,95237.0,0.01050012]
[1768616188246,0.01049979,95240.0,95237.0,0.06300066]
[1768616188458,0.06299914,95240.0,95236.0,0.01050023]
[1768616188663,0.01049979,95240.0,95237.0,0.01050012]
[1768616189073,0.01049979,95240.0,95236.0,0.05250077]
[1768616189251,0.01049979,95240.0,95235.0,0.01050034]
[1768616189481,0.01049979,95240.0,95236.0,0.05250107]
[1768616189656,0.01049979,95240.0,95237.0,0.01050012]
[1768616189855,0.01049979,95240.0,95236.0,0.01050023]
[1768616190062,0.01049979,95240.0,95236.0,0.06300106]
[1768616190894,0.01049979,95240.0,95237.0,0.01050012]
[1768616191252,0.01049979,95240.0,95235.0,0.01050034]
[1768616191704,0.01149979,95240.0,95236.0,0.01050023]
[1768616191876,0.01149979,95240.0,95237.0,0.05250055]
[1768616192083,0.01149979,95240.0,95237.0,0.06300067]
[1768616192284,0.01049979,95240.0,95237.0,0.06300067]
[1768616192602,0.01049979,95240.0,95237.0,0.01050012]
[1768616193027,0.01049979,95240.0,95237.0,0.06300064]
[1768616193217,0.01049979,95240.0,95237.0,0.01050012]
[1768616193801,0.13773967,95241.0,95238.0,0.01050001]
[1768616193961,0.13773967,95241.0,95237.0,0.01050012]
[1768616194163,0.13773967,95241.0,95237.0,0.06300053]
[1768616194761,0.13773967,95241.0,95238.0,0.01050001]
[1768616194963,0.13773967,95241.0,95238.0,0.06299997]
[1768616195183,0.13773967,95241.0,95237.0,0.01050012]
[1768616195800,0.13873967,95241.0,95238.0,0.01050001]
[1768616196655,0.13873967,95241.0,95238.0,0.063]
[1768616196818,0.13873967,95241.0,95236.0,0.01050023]
[1768616197021,0.19123849,95241.0,95236.0,0.06300119]
[1768616197628,0.13873967,95241.0,95237.0,0.06300071]
[1768616197843,0.20998334,95246.0,95242.0,0.01049956]
[1768616197844,0.01049912,95246.0,95242.0,0.01049956]
[1768616198016,0.01049934,95244.0,95241.0,0.01049967]
[1768616198417,0.06299611,95244.0,95241.0,0.01049967]
[1768616198640,0.01049934,95244.0,95241.0,0.01049967]
[1768616199325,0.01049934,95244.0,95241.0,0.05249837]
[1768616199522,0.01049934,95244.0,95240.0,0.06299864]
[1768616199729,0.01049934,95244.0,95240.0,0.01049979]
[1768616199938,0.01049934,95244.0,95240.0,0.06299833]
[1768616200345,0.01049934,95244.0,95241.0,0.06299804]
[1768616200561,0.01049923,95245.0,95241.0,0.06299804]
[1768616200827,0.06299608,95244.0,95240.0,0.01049979]
[1768616201037,0.01049934,95244.0,95240.0,0.06299873]
[1768616201239,0.01049934,95244.0,95241.0,0.01049967]
[1768616201646,0.01049934,95244.0,95240.0,0.01049979]
[1768616202089,0.01049934,95244.0,95240.0,0.0629987]
[1768616202295,0.01049945,95243.0,95240.0,0.01049979]
[1768616202499,0.01049945,95243.0,95239.0,0.0104999]
[1768616202906,0.01049934,95244.0,95240.0,0.01049979]
[1768616203117,0.01049934,95244.0,95240.0,0.0629987]
[1768616203325,0.06299621,95244.0,95240.0,0.01049979]
[1768616203964,0.06299621,95244.0,95240.0,0.01030259]
[1768616204556,0.01049934,95244.0,95240.0,0.01030259]
[1768616204966,0.06299655,95244.0,95240.0,0.01030259]
[1768616205253,0.01049934,95244.0,95241.0,0.06299802]
[1768616205518,0.06299623,95244.0,95240.0,0.01030259]
[1768616205687,0.06299628,95244.0,95240.0,0.01030259]
[1768616205904,0.01049934,95244.0,95240.0,0.01030259]
[1768616206136,0.01049934,95244.0,95241.0,0.01049967]
[1768616206466,0.01049934,95244.0,95240.0,0.01030259]
[1768616206674,0.06299662,95244.0,95240.0,0.01030259]
[1768616206928,0.01049945,95243.0,95240.0,0.01030259]
[1768616207128,0.01049945,95243.0,95240.0,0.0628015]
[1768616207330,0.01049945,95243.0,95240.0,0.01030259]
[1768616207511,0.01049934,95244.0,95241.0,0.06299805]
[1768616207961,0.01049923,95245.0,95242.0,0.06299728]
[1768616208761,0.06299579,95245.0,95241.0,0.01049967]
[1768616208965,0.01049923,95245.0,95242.0,0.01049956]
[1768616209333,0.01049923,95245.0,95240.0,0.06280105]
[1768616209334,0.01049934,95244.0,95240.0,0.06280105]
[1768616210240,0.01049934,95244.0,95241.0,0.01049967]
[1768616210446,0.06299644,95244.0,95240.0,0.01030259]
[1768616210657,0.01049934,95244.0,95240.0,0.01030259]
[1768616210870,0.01049934,95244.0,95240.0,0.06260415]
[1768616211076,0.01049934,95244.0,95240.0,0.06260429]
[1768616211284,0.06299645,95244.0,95240.0,0.01010541]
[1768616211488,0.01049934,95244.0,95240.0,0.01010541]
[1768616211689,0.01049934,95244.0,95241.0,0.01049967]
[1768616211908,0.06299609,95244.0,95241.0,0.01049967]
[1768616212320,0.06299609,95244.0,95240.0,0.01010541]
[1768616212727,0.01049934,95244.0,95240.0,0.01010541]
[1768616212928,0.01049934,95244.0,95240.0,0.0626042]
[1768616213132,0.01049934,95244.0,95240.0,0.01010541]
[1768616213329,0.01049945,95243.0,95240.0,0.01010541]
[1768616214377,0.01049945,95243.0,95239.0,0.0104999]
[1768616214639,0.01049945,95243.0,95239.0,0.06299916]
[1768616214931,0.01049934,95244.0,95240.0,0.01049979]
[1768616215351,0.01049934,95244.0,95240.0,0.06299852]
[1768616215559,0.01049934,95244.0,95241.0,0.01049967]
[1768616215763,0.01049923,95245.0,95241.0,0.01049967]
[1768616215941,0.001,95243.0,95241.0,0.01049967]
[1768616216540,0.01049934,95244.0,95241.0,0.01049967]
[1768616216932,0.01149934,95244.0,95241.0,0.01049967]
[1768616217348,0.01049934,95244.0,95241.0,0.01049967]
[1768616217554,0.01049923,95245.0,95241.0,0.06299765]
[1768616217782,0.01049923,95245.0,95242.0,0.01049956]
[1768616218339,0.0629956,95245.0,95242.0,0.01049956]
[1768616218865,0.01049923,95245.0,95242.0,0.01049956]
[1768616219478,0.01040834,95245.0,95242.0,0.06299732]
[1768616219691,0.001,95244.0,95243.0,0.0629965]
[1768616220226,0.02199846,95246.0,95243.0,0.0629965]
[1768616220359,0.01049923,95245.0,95241.0,0.01049967]
[1768616220561,0.001,95245.0,95242.0,0.01049956]
[1768616221013,0.01149923,95245.0,95242.0,0.01049956]
[1768616221229,0.01049923,95245.0,95242.0,0.01030245]
[1768616221508,0.00808021,95245.0,95242.0,0.01030245]
[1768616221828,0.06057654,95245.0,95242.0,0.01030245]
[1768616222303,0.00808021,95245.0,95242.0,0.01030245]
[1768616223892,0.01149934,95246.0,95243.0,0.01049945]
[1768616224316,0.5,95250.0,95243.0,0.01049945]
[1768616224533,0.5,95250.0,95247.0,0.01049901]
[1768616224534,0.45,95250.0,95247.0,0.01049901]
[1768616224732,0.45,95250.0,95247.0,0.06299407]
[1768616225812,0.45,95250.0,95247.0,0.01049901]
[1768616228781,0.45,95250.0,95247.0,0.06299401]
[1768616229411,0.45,95250.0,95247.0,0.01049901]
[1768616230243,0.45,95250.0,95247.0,0.06299406]
[1768616234436,0.45,95250.0,95247.0,0.01049901]
[1768616234860,0.45,95250.0,95246.0,0.0629943]
[1768616235058,0.45,95250.0,95247.0,0.06299391]
[1768616235259,0.45,95250.0,95247.0,0.06290303]
[1768616236297,0.45,95250.0,95247.0,0.01049901]
[1768616236491,0.45,95250.0,95247.0,0.06299367]
[1768616236699,0.45,95250.0,95247.0,0.06299369]
[1768616236902,0.45,95250.0,95247.0,0.01049901]
[1768616238355,0.45,95250.0,95247.0,0.06299406]
[1768616239143,0.45,95250.0,95247.0,0.01049901]
[1768616240631,0.45,95250.0,95247.0,0.06299402]
[1768616240828,0.45,95250.0,95247.0,0.01049901]
[1768616241032,0.451,95250.0,95247.0,0.01049901]
[1768616241448,0.45,95250.0,95247.0,0.01049901]
[1768616242479,0.51299211,95250.0,95246.0,0.01049912]
[1768616244418,0.46049868,95250.0,95247.0,0.01049901]
[1768616244651,0.51299234,95250.0,95247.0,0.01049901]
[1768616245877,0.51299234,95250.0,95246.0,0.01049912]
[1768616246525,0.46049868,95250.0,95246.0,0.06299465]
[1768616247446,0.46049868,95250.0,95247.0,0.01049901]
[1768616247655,0.46049868,95250.0,95247.0,0.06299407]
[1768616248831,0.46049868,95250.0,95247.0,0.01049901]
[1768616250339,0.01049879,95249.0,95246.0,0.01049912]
[1768616254243,0.01049879,95249.0,95246.0,0.06299461]
[1768616254768,0.01049879,95249.0,95246.0,0.01049912]
[1768616255391,0.01049879,95249.0,95246.0,0.06299463]
[1768616256552,0.46049868,95250.0,95247.0,0.06299402]
[1768616257151,0.46049868,95250.0,95247.0,0.01049901]
[1768616258036,0.46010415,95250.0,95247.0,0.01049901]
[1768616258692,0.45970958,95250.0,95247.0,0.01049901]
[1768616259898,0.45931498,95250.0,95247.0,0.01049901]
[1768616260522,0.45931498,95250.0,95247.0,0.06299393]
[1768616260726,0.45931498,95250.0,95247.0,0.01049901]
[1768616260927,0.46031498,95250.0,95247.0,0.01049901]
[1768616261344,0.45931498,95250.0,95247.0,0.01049901]
[1768616261562,0.45931498,95250.0,95247.0,0.06299407]
[1768616261776,0.45931498,95250.0,95247.0,0.01049901]
[1768616263595,0.46031498,95250.0,95247.0,0.01049901]
[1768616264236,0.45931498,95250.0,95247.0,0.01049901]
[1768616264631,0.46031498,95250.0,95247.0,0.01049901]
[1768616265132,0.45931498,95250.0,95247.0,0.01049901]
[1768616265764,0.01049802,95256.0,95250.0,0.01049868]
[1768616265962,0.01049813,95255.0,95250.0,0.062992]
[1768616266144,0.01049813,95255.0,95251.0,0.01049857]
[1768616266866,0.01049802,95256.0,95252.0,0.01049846]
[1768616267068,0.06298835,95256.0,95252.0,0.01049846]
[1768616267203,0.01049813,95255.0,95252.0,0.01049846]
[1768616268265,0.06298883,95255.0,95251.0,0.01049857]
[1768616268696,0.06298883,95255.0,95249.0,0.01049879]
[1768616268697,0.01049846,95252.0,95249.0,0.01049879]
[1768616269527,0.01049835,95253.0,95249.0,0.01049879]
[1768616269965,0.01049813,95255.0,95251.0,0.01049857]
[1768616270184,0.01049802,95256.0,95252.0,0.05249227]
[1768616270587,0.01049802,95256.0,95251.0,0.06294581]
[1768616270971,0.06298833,95256.0,95251.0,0.01045311]
[1768616271324,0.06298833,95256.0,95252.0,0.01049846]
[1768616272062,0.01049802,95256.0,95252.0,0.01049846]
[1768616272901,0.01049802,95256.0,95252.0,0.06299069]
[1768616273110,0.01049802,95256.0,95252.0,0.01049846]
[1768616273314,0.01049813,95255.0,95251.0,0.01049857]
[1768616273517,0.01049802,95256.0,95252.0,0.01049846]
[1768616274967,0.01049802,95256.0,95252.0,0.06299069]
[1768616275786,0.01049824,95254.0,95250.0,0.06299198]
[1768616275995,0.01049824,95254.0,95251.0,0.01049857]
[1768616276210,0.06298986,95254.0,95250.0,0.01049868]
[1768616276417,0.01049835,95253.0,95250.0,0.01049868]
[1768616276625,0.01049824,95254.0,95251.0,0.01049857]
[1768616277053,0.01049824,95254.0,95251.0,0.06299139]
[1768616277261,0.01049813,95255.0,95251.0,0.06299139]
[1768616277396,0.01049824,95254.0,95250.0,0.01049868]
[1768616277596,0.01049813,95255.0,95251.0,0.06299108]
[1768616278195,0.01049813,95255.0,95252.0,0.05249228]
[1768616278499,0.01049813,95255.0,95251.0,0.06299137]
[1768616278747,0.01049813,95255.0,95250.0,0.01049868]
[1768616278946,0.01049813,95255.0,95251.0,0.05249277]
[1768616279156,0.01049813,95255.0,95251.0,0.06299134]
[1768616280205,0.01049813,95255.0,95250.0,0.01049868]
[1768616280408,0.01049813,95255.0,95251.0,0.01049857]
[1768616280804,0.06298887,95255.0,95251.0,0.01049857]
[1768616280964,0.01049802,95256.0,95251.0,0.01049857]
[1768616280965,0.01049802,95256.0,95252.0,0.01049846]
[1768616281164,0.01049813,95255.0,95251.0,0.01049857]
[1768616281344,0.01049824,95254.0,95249.0,0.01049879]
[1768616281759,0.05249183,95253.0,95249.0,0.01049879]
[1768616282363,0.01049846,95252.0,95249.0,0.01049879]
[1768616282804,0.01049824,95254.0,95249.0,0.01049879]
[1768616283125,0.01049835,95253.0,95250.0,0.01049868]
[1768616283328,0.06299015,95253.0,95250.0,0.01049868]
[1768616284107,0.01049835,95253.0,95250.0,0.01049868]
[1768616284318,0.06299018,95253.0,95250.0,0.01049868]
[1768616284517,0.01049835,95253.0,95250.0,0.01049868]
[1768616284721,0.06299023,95253.0,95250.0,0.01049868]
[1768616286370,0.06299025,95253.0,95250.0,0.01049868]
[1768616286545,0.01049835,95253.0,95250.0,0.01049868]
[1768616290186,0.01049835,95253.0,95249.0,0.01049879]
[1768616290605,0.01049835,95253.0,95249.0,0.06299252]
[1768616291243,0.01049835,95253.0,95249.0,0.01049879]
[1768616291450,0.01149835,95253.0,95249.0,0.01049879]
[1768616291874,0.01149835,95253.0,95249.0,0.06299275]
[1768616292067,0.01049835,95253.0,95250.0,0.01049868]
[1768616294979,0.01049824,95254.0,95250.0,0.06299211]
[1768616295178,0.01049824,95254.0,95251.0,0.01049857]
[1768616295338,0.01049824,95254.0,95251.0,0.0629914]
[1768616295535,0.01049824,95254.0,95251.0,0.06279424]
[1768616295742,0.01049824,95254.0,95251.0,0.01030141]
[1768616297964,0.01049824,95254.0,95251.0,0.06279423]
[1768616302019,0.01049802,95256.0,95252.0,0.01049846]
[1768616302785,0.01049802,95256.0,95252.0,0.06299072]
[1768616303209,0.0106567,95258.0,95253.0,0.06298971]
[1768616303408,0.06314573,95258.0,95253.0,0.06298971]
[1768616303833,0.01049791,95257.0,95254.0,0.06298945]
[1768616304569,0.06298815,95256.0,95253.0,0.01049835]
[1768616304816,0.01049802,95256.0,95253.0,0.01049835]
[1768616305352,0.0629883,95256.0,95252.0,0.01049846]
[1768616305796,0.01049813,95255.0,95252.0,0.01049846]
[1768616306352,0.06298895,95255.0,95252.0,0.01049846]
[1768616308354,0.01049813,95255.0,95252.0,0.01049846]
[1768616308682,0.06298892,95255.0,95252.0,0.01049846]
[1768616309044,0.01049824,95254.0,95251.0,0.01030141]
[1768616309728,0.01049813,95255.0,95251.0,0.01030141]
[1768616309929,0.01049813,95255.0,95251.0,0.06279402]
[1768616312641,0.01049813,95255.0,95252.0,0.06299071]
[1768616312891,0.01049813,95255.0,95252.0,0.01049846]
[1768616313104,0.01049802,95256.0,95253.0,0.01049835]
[1768616313792,0.01049791,95257.0,95254.0,0.01049824]
[1768616314199,0.0106567,95258.0,95254.0,0.06298927]
[1768616315790,0.0106567,95258.0,95255.0,0.01049813]
[1768616316677,0.0001589,95258.0,95255.0,0.01049813]
[1768616317143,0.0011589,95258.0,95255.0,0.01049813]
[1768616318021,0.01049791,95257.0,95253.0,0.01049835]
[1768616318229,0.01049791,95257.0,95254.0,0.01049824]
[1768616318878,0.01049791,95257.0,95253.0,0.01049835]
[1768616319308,0.01049791,95257.0,95253.0,0.06298972]
[1768616319532,0.01049791,95257.0,95254.0,0.01049824]
[1768616320156,0.01149791,95257.0,95254.0,0.06298942]
[1768616320392,0.01149791,95257.0,95254.0,0.01049824]
[1768616320597,0.01049791,95257.0,95253.0,0.06298994]
[1768616321237,0.01049791,95257.0,95253.0,0.01049835]
[1768616321444,0.01049791,95257.0,95254.0,0.01049824]
[1768616322808,0.06298795,95257.0,95253.0,0.01049835]
[1768616322984,0.01049791,95257.0,95253.0,0.06298997]
[1768616323205,0.01149791,95257.0,95253.0,0.01049835]
[1768616323641,0.0004362,95255.0,95253.0,0.01049835]
[1768616323817,0.01049802,95256.0,95253.0,0.01049835]
[1768616324048,0.0629882,95256.0,95253.0,0.01049835]
[1768616324251,0.06211326,95256.0,95253.0,0.01049835]
[1768616324450,0.06211326,95256.0,95252.0,0.01049846]
[1768616326587,0.001,95255.0,95252.0,0.01049846]
[1768616327119,0.06211326,95256.0,95252.0,0.01049846]
[1768616327496,0.06311326,95256.0,95252.0,0.01049846]
[1768616329155,0.0004317,95254.0,95252.0,0.01049846]
[1768616329307,0.01149802,95256.0,95252.0,0.01049846]
[1768616329502,0.01149802,95256.0,95253.0,0.06299002]
[1768616329713,0.01049802,95256.0,95253.0,0.01049835]
[1768616330333,0.06298816,95256.0,95253.0,0.01049835]
[1768616330676,0.01049802,95256.0,95253.0,0.01049835]
[1768616331303,0.01049802,95256.0,95253.0,0.06299005]
[1768616331505,0.01149802,95256.0,95253.0,0.06299005]
[1768616331924,0.06398816,95256.0,95253.0,0.01049835]
[1768616333041,0.01149802,95256.0,95253.0,0.01049835]
[1768616333240,0.01049802,95256.0,95253.0,0.01049835]
[1768616333656,0.06298815,95256.0,95253.0,0.01049835]
[1768616335697,0.01049802,95256.0,95253.0,0.01049835]
[1768616335979,0.06298815,95256.0,95253.0,0.01049835]
[1768616336224,0.0004317,95254.0,95253.0,0.01049835]
[1768616337066,0.0004317,95254.0,95252.0,0.01049846]
[1768616337287,0.06398815,95256.0,95252.0,0.01049846]
[1768616337480,0.01049791,95257.0,95254.0,0.01049824]
[1768616337965,0.0001589,95258.0,95255.0,0.01049813]
[1768616338586,0.0106567,95258.0,95254.0,0.01049824]
[1768616339025,0.0001589,95258.0,95255.0,0.01049813]
[1768616339475,0.0631458,95258.0,95255.0,0.01049813]
[1768616339689,0.06314582,95258.0,95254.0,0.01049824]
[1768616340114,0.0106567,95258.0,95254.0,0.01049824]
[1768616340322,0.01049791,95257.0,95253.0,0.01049835]
[1768616340497,0.001,95256.0,95253.0,0.06298971]
[1768616340751,0.001,95256.0,95253.0,0.01049835]
[1768616340924,0.0106567,95258.0,95254.0,0.06298946]
[1768616341274,0.0106567,95258.0,95255.0,0.01049813]
[1768616341673,0.0106567,95258.0,95253.0,0.01049835]
[1768616341884,0.01049791,95257.0,95253.0,0.07426378]
[1768616342090,0.06298882,95255.0,95251.0,0.01030141]
[1768616342296,0.06298882,95255.0,95248.0,0.06299242]
[1768616342297,0.01049824,95254.0,95250.0,0.01049868]
[1768616342509,0.00042719,95253.0,95251.0,0.01049857]
[1768616342736,0.01049813,95255.0,95252.0,0.01049846]
[1768616343173,0.01049824,95254.0,95251.0,0.01049857]
[1768616343581,0.01049813,95255.0,95251.0,0.01049857]
[1768616343918,0.01049813,95255.0,95251.0,0.06299131]